fUST/lending_fUST_20250827
["ID","MTS","AMOUNT","RATE_DAILY","PERIOD"]
[381640176,1756300266105,-700.56,0.00023013,2]
[381640178,1756300266114,-480.0,0.00023013,2]
[381640180,1756300266124,-531.78,0.00023013,2]
[381640182,1756300266133,-480.0,0.00023013,2]
[381640184,1756300266142,-480.0,0.00023013,2]
[381640186,1756300266152,-480.0,0.00023013,2]
[381640188,1756300266161,-480.0,0.00023013,2]
[381640190,1756300266172,-2061.31,0.00023013,2]
[381640192,1756300266181,-548.5,0.00023013,2]
[381640194,1756300266191,-480.0,0.00023013,2]
[381640196,1756300266200,-480.0,0.00023013,2]
[381640198,1756300266209,-598.63,0.00023013,2]
[381640200,1756300266219,-707.22,0.00023013,2]
[381640202,1756300266228,-480.0,0.00023013,2]
[381640204,1756300266238,-592.64,0.00023013,2]
[381640206,1756300266247,-480.0,0.00023013,2]
[381640208,1756300266257,-480.0,0.00023013,2]
[381640210,1756300266267,-480.0,0.00023013,2]
[381640212,1756300266277,-480.0,0.00023013,2]
[381640214,1756300266287,-480.0,0.00023013,2]
[381640216,1756300266300,-480.0,0.00023013,2]
[381640218,1756300266310,-480.0,0.00023013,2]
[381640220,1756300266320,-499.75,0.00023013,2]
[381640222,1756300266331,-500.0,0.00023013,2]
[381640224,1756300266349,-1499.56,0.00023013,2]
[381640226,1756300266359,-480.0,0.00023013,2]
[381640228,1756300266368,-536.82,0.00023013,2]
[381640230,1756300266378,-480.0,0.00023013,2]
[381640232,1756300266389,-480.0,0.00023013,2]
[381640234,1756300266399,-851.04,0.00023013,2]
[381640236,1756300266408,-480.0,0.00023013,2]
[381640255,1756300266577,-480.0,0.00023013,2]
[381640257,1756300266593,-480.0,0.00023013,2]
[381640259,1756300266614,-621.12,0.00023013,2]
[381640261,1756300266626,-480.0,0.00023013,2]
[381640263,1756300266635,-480.0,0.00023013,2]
[381640265,1756300266645,-480.0,0.00023013,2]
[381640267,1756300266655,-480.0,0.00023013,2]
[381640269,1756300266665,-502.73,0.00023013,2]
[381640271,1756300266674,-540.63,0.00023013,2]
[381640273,1756300266684,-1154.23,0.00023013,2]
[381640275,1756300266693,-480.0,0.00023013,2]
[381640277,1756300266703,-178.23093286,0.00023013,2]
[381640279,1756300266713,-480.0,0.00023013,2]
[381640281,1756300266723,-480.0,0.00023013,2]
[381640284,1756300266733,-2209.59,0.00023013,2]
[381640286,1756300266743,-480.0,0.00023013,2]
[381640288,1756300266752,-480.0,0.00023013,2]
[381640290,1756300266763,-991.65,0.00023013,2]
[381640292,1756300266772,-480.0,0.00023013,2]
[381640294,1756300266782,-480.0,0.00023013,2]
[381640296,1756300266791,-1168.45,0.00023013,2]
[381640298,1756300266800,-480.0,0.00023013,2]
[381640300,1756300266810,-480.0,0.00023013,2]
[381640302,1756300266820,-480.0,0.00023013,2]
[381640304,1756300266831,-480.0,0.00023013,2]
[381640306,1756300266840,-687.72,0.00023013,2]
[381640308,1756300266850,-480.0,0.00023013,2]
[381640310,1756300266861,-480.0,0.00023013,2]
[381640312,1756300266871,-480.0,0.00023013,2]
[381640314,1756300266880,-480.0,0.00023013,2]
[381640316,1756300266890,-1375.52,0.00023013,2]
[381640318,1756300266900,-609.53,0.00023013,2]
[381640320,1756300266911,-480.0,0.00023013,2]
[381640322,1756300266922,-480.0,0.00023013,2]
[381640325,1756300266932,-480.0,0.00023013,2]
[381640326,1756300266942,-480.0,0.00023013,2]
[381640329,1756300266951,-480.0,0.00023013,2]
[381640331,1756300266961,-629.17,0.00023013,2]
[381640333,1756300266971,-480.0,0.00023013,2]
[381640334,1756300266990,-480.0,0.00023013,2]
[381640336,1756300267013,-480.0,0.00023013,2]
[381640338,1756300267035,-879.01,0.00023013,2]
[381640340,1756300267058,-480.0,0.00023013,2]
[381640342,1756300267081,-480.0,0.00023013,2]
[381640344,1756300267103,-553.05,0.00023013,2]
[381640347,1756300267125,-480.0,0.00023013,2]
[381640348,1756300267146,-511.27,0.00023013,2]
[381640350,1756300267168,-480.0,0.00023013,2]
[381640352,1756300267190,-580.60455557,0.00023013,2]
[381640354,1756300267199,-480.0,0.00023013,2]
[381640357,1756300267209,-480.0,0.00023013,2]
[381640359,1756300267219,-480.0,0.00023013,2]
[381640361,1756300267228,-480.0,0.00023013,2]
[381640363,1756300267238,-480.0,0.00023013,2]
[381640365,1756300267247,-1185.91,0.00023013,2]
[381640367,1756300267255,-480.0,0.00023013,2]
[381640369,1756300267265,-1100.79,0.00023013,2]
[381640371,1756300267275,-480.0,0.00023013,2]
[381640373,1756300267284,-480.0,0.00023013,2]
[381640375,1756300267294,-480.0,0.00023013,2]
[381640377,1756300267304,-480.0,0.00023013,2]
[381640379,1756300267313,-480.0,0.00023013,2]
[381640381,1756300267322,-674.82,0.00023013,2]
[381640383,1756300267332,-480.0,0.00023013,2]
[381640385,1756300267346,-1582.66,0.00023013,2]
[381640387,1756300267356,-480.0,0.00023013,2]
[381640389,1756300267365,-480.0,0.00023013,2]
[381640391,1756300267375,-3079.94,0.00023013,2]
[381640393,1756300267385,-1441.98,0.00023013,2]
[381640395,1756300267394,-558.78,0.00023013,2]
[381640397,1756300267403,-480.0,0.00023013,2]
[381640399,1756300267412,-512.86,0.00023013,2]
[381640401,1756300267423,-1247.25,0.00023013,2]
[381640403,1756300267433,-535.83,0.00023013,2]
[381640405,1756300267442,-324.34212447,0.00023013,2]
[381640407,1756300267451,-619.84,0.00023013,2]
[381640409,1756300267460,-1012.69,0.00023013,2]
[381640411,1756300267469,-480.0,0.00023013,2]
[381640413,1756300267479,-480.0,0.00023013,2]
[381640415,1756300267488,-480.0,0.00023013,2]
[381640417,1756300267498,-1558.31,0.00023013,2]
[381640419,1756300267507,-575.32,0.00023013,2]
[381640421,1756300267518,-480.0,0.00023013,2]
[381640423,1756300267527,-480.0,0.00023013,2]
[381640424,1756300267536,-480.0,0.00023013,2]
[381640427,1756300267546,-480.0,0.00023013,2]
[381640429,1756300267555,-480.0,0.00023013,2]
[381640430,1756300267565,-480.0,0.00023013,2]
[381640432,1756300267575,-1467.04,0.00023013,2]
[381640435,1756300267584,-480.0,0.00023013,2]
[381640437,1756300267594,-1873.26,0.00023013,2]
[381640439,1756300267603,-480.0,0.00023013,2]
[381640441,1756300267612,-480.0,0.00023013,2]
[381640443,1756300267623,-480.0,0.00023013,2]
[381640445,1756300267633,-480.0,0.00023013,2]
[381640447,1756300267643,-480.0,0.00023013,2]
[381640449,1756300267652,-504.11,0.00023013,2]
[381640451,1756300267662,-480.0,0.00023013,2]
[381640453,1756300267674,-480.0,0.00023013,2]
[381640455,1756300267683,-508.08,0.00023013,2]
[381640457,1756300267693,-480.0,0.00023013,2]
[381640459,1756300267703,-480.0,0.00023013,2]
[381640461,1756300267712,-480.0,0.00023013,2]
[381640462,1756300267722,-480.0,0.00023013,2]
[381640464,1756300267732,-2486.85,0.00023013,2]
[381640467,1756300267742,-480.0,0.00023013,2]
[381640468,1756300267752,-480.0,0.00023013,2]
[381640470,1756300267762,-480.0,0.00023013,2]
[381640472,1756300267771,-480.0,0.00023013,2]
[381640474,1756300267781,-7496.55,0.00023013,2]
[381640476,1756300267791,-480.0,0.00023013,2]
[381640478,1756300267800,-768.18,0.00023013,2]
[381640480,1756300267809,-480.0,0.00023013,2]
[381640482,1756300267819,-820.29,0.00023013,2]
[381640484,1756300267829,-487.65,0.00023013,2]
[381640487,1756300267839,-480.0,0.00023013,2]
[381640489,1756300267848,-480.0,0.00023013,2]
[381640491,1756300267858,-480.0,0.00023013,2]
[381640492,1756300267868,-480.0,0.00023013,2]
[381640495,1756300267878,-1126.02,0.00023013,2]
[381640497,1756300267888,-480.0,0.00023013,2]
[381640499,1756300267897,-1019.66,0.00023013,2]
[381640501,1756300267907,-480.0,0.00023013,2]
[381640503,1756300267918,-480.0,0.00023013,2]
[381640505,1756300267928,-4097.76,0.00023013,2]
[381640507,1756300267937,-151.0,0.00023013,7]
[381640509,1756300267947,-1538.8,0.00023013,2]
[381640511,1756300267956,-480.0,0.00023013,2]
[381640513,1756300267965,-480.0,0.00023013,2]
[381640515,1756300267975,-553.39,0.00023013,2]
[381640517,1756300267984,-480.0,0.00023013,2]
[381640519,1756300267994,-563.16,0.00023013,2]
[381640521,1756300268003,-151.0,0.00023013,7]
[381640523,1756300268012,-480.0,0.00023013,2]
[381640525,1756300268022,-480.0,0.00023013,2]
[381640527,1756300268031,-866.73,0.00023013,2]
[381640529,1756300268040,-532.37,0.00023013,2]
[381640530,1756300268050,-480.0,0.00023013,2]
[381640533,1756300268059,-1089.92,0.00023013,2]
[381640535,1756300268070,-480.0,0.00023013,2]
[381640537,1756300268079,-480.0,0.00023013,2]
[381640539,1756300268088,-480.0,0.00023013,2]
[381640541,1756300268097,-480.0,0.00023013,2]
[381640543,1756300268107,-480.0,0.00023013,2]
[381640545,1756300268116,-480.0,0.00023013,2]
[381640547,1756300268126,-480.0,0.00023013,2]
[381640549,1756300268135,-619.83,0.00023013,2]
[381640551,1756300268145,-480.0,0.00023013,2]
[381640553,1756300268156,-480.0,0.00023013,2]
[381640554,1756300268165,-480.0,0.00023013,2]
[381640556,1756300268176,-1480.58,0.00023013,2]
[381640558,1756300268185,-480.0,0.00023013,2]
[381640560,1756300268195,-1080.29,0.00023013,2]
[381640562,1756300268204,-2783.48,0.00023013,2]
[381640564,1756300268214,-849.03,0.00023013,2]
[381640566,1756300268223,-3788.9,0.00023013,2]
[381640568,1756300268232,-1045.46,0.00023013,2]
[381640570,1756300268241,-527.62,0.00023013,2]
[381640572,1756300268252,-480.0,0.00023013,2]
[381640575,1756300268269,-480.0,0.00023013,2]
[381640578,1756300268285,-480.0,0.00023013,2]
[381640580,1756300268298,-1135.21,0.00023013,2]
[381640582,1756300268314,-1489.59,0.00023013,2]
[381640585,1756300268328,-480.0,0.00023013,2]
[381640587,1756300268346,-480.0,0.00023013,2]
[381640590,1756300268362,-480.0,0.00023013,2]
[381640592,1756300268379,-885.58,0.00023013,2]
[381640595,1756300268392,-480.0,0.00023013,2]
[381640597,1756300268407,-1171.32,0.00023013,2]
[381640600,1756300268423,-506.58,0.00023013,2]
[381640603,1756300268439,-1373.52,0.00023013,2]
[381640605,1756300268451,-521.66,0.00023013,2]
[381640607,1756300268464,-994.97,0.00023013,2]
[381640610,1756300268478,-2291.1,0.00023013,2]
[381640613,1756300268493,-480.0,0.00023013,2]
[381640615,1756300268509,-4941.28,0.00023013,2]
[381640618,1756300268524,-836.96,0.00023013,2]
[381640620,1756300268537,-480.0,0.00023013,2]
[381640622,1756300268548,-805.85,0.00023013,2]
[381640625,1756300268562,-480.0,0.00023013,2]
[381640628,1756300268578,-480.0,0.00023013,2]
[381640630,1756300268590,-480.0,0.00023013,2]
[381640632,1756300268602,-584.58,0.00023013,2]
[381640635,1756300268617,-509.64,0.00023013,2]
[381640637,1756300268629,-289.62023927,0.00023013,2]
[381640640,1756300268641,-826.49,0.00023013,2]
[381640642,1756300268654,-480.0,0.00023013,2]
[381640644,1756300268668,-480.0,0.00023013,2]
[381640647,1756300268681,-151.0,0.00023013,7]
[381640649,1756300268693,-480.0,0.00023013,2]
[381640652,1756300268706,-826.37,0.00023013,2]
[381640654,1756300268720,-642.66,0.00023013,2]
[381640656,1756300268733,-647.14,0.00023013,2]
[381640659,1756300268745,-495.41,0.00023013,2]
[381640661,1756300268757,-480.0,0.00023013,2]
[381640663,1756300268770,-549.36,0.00023013,2]
[381640666,1756300268783,-480.0,0.00023013,2]
[381640668,1756300268796,-480.0,0.00023013,2]
[381640671,1756300268809,-713.97,0.00023013,2]
[381640673,1756300268822,-706.08,0.00023013,2]
[381640675,1756300268834,-684.55,0.00023013,2]
[381640678,1756300268846,-1220.94,0.00023013,2]
[381640680,1756300268858,-562.5,0.00023013,2]
[381640682,1756300268871,-480.0,0.00023013,2]
[381640685,1756300268883,-480.0,0.00023013,2]
[381640687,1756300268895,-480.0,0.00023013,2]
[381640689,1756300268907,-480.0,0.00023013,2]
[381640692,1756300268920,-480.0,0.00023013,2]
[381640694,1756300268932,-480.0,0.00023013,2]
[381640697,1756300268945,-480.0,0.00023013,2]
[381640699,1756300268958,-543.46,0.00023013,2]
[381640701,1756300268970,-2694.85320856,0.00023029,2]
[381640703,1756300268982,-1500.0,0.00023068,2]
[381640706,1756300268995,-350.0,0.00023068,2]
[381640708,1756300269008,-1000.0,0.00023068,2]
[381640711,1756300269020,-1415.02958691,0.00023155,7]
[381640713,1756300269032,-500.0,0.00023235,2]
[381640715,1756300269045,-241.89941846,0.00023268,2]
[381640718,1756300269057,-151.39315626,0.00023268,2]
[381640720,1756300269070,-480.0,0.00023287,2]
[381640722,1756300269082,-484.65,0.00023287,2]
[381640725,1756300269095,-602.96,0.00023287,2]
[381640727,1756300269108,-480.0,0.00023287,2]
[381640729,1756300269120,-480.0,0.00023287,2]
[381640732,1756300269133,-602.45,0.00023287,2]
[381640734,1756300269144,-480.0,0.00023287,2]
[381640736,1756300269156,-480.0,0.00023287,2]
[381640739,1756300269168,-480.0,0.00023287,2]
[381640741,1756300269182,-480.0,0.00023287,2]
[381640743,1756300269195,-480.0,0.00023287,2]
[381640746,1756300269207,-480.0,0.00023287,2]
[381640748,1756300269219,-480.0,0.00023287,2]
[381640750,1756300269231,-517.62,0.00023287,2]
[381640752,1756300269244,-480.0,0.00023287,2]
[381640755,1756300269256,-480.0,0.00023287,2]
[381640757,1756300269268,-480.0,0.00023287,2]
[381640759,1756300269281,-480.0,0.00023287,2]
[381640762,1756300269293,-480.0,0.00023287,2]
[381640764,1756300269305,-480.0,0.00023287,2]
[381640766,1756300269317,-863.12,0.00023287,2]
[381640769,1756300269328,-480.0,0.00023287,2]
[381640771,1756300269343,-602.59,0.00023287,2]
[381640773,1756300269355,-480.0,0.00023287,2]
[381640776,1756300269371,-380.4173895,0.00023287,2]
[381640778,1756300269384,-480.0,0.00023287,2]
[381640780,1756300269396,-480.0,0.00023287,2]
[381640783,1756300269409,-710.45,0.00023287,2]
[381640785,1756300269423,-480.0,0.00023287,2]
[381640787,1756300269435,-480.0,0.00023287,2]
[381640789,1756300269447,-480.0,0.00023287,2]
[381640792,1756300269459,-480.0,0.00023287,2]
[381640794,1756300269471,-480.0,0.00023287,2]
[381640796,1756300269483,-480.0,0.00023287,2]
[381640799,1756300269496,-480.0,0.00023287,2]
[381640801,1756300269508,-740.24,0.00023287,2]
[381640803,1756300269520,-480.0,0.00023287,2]
[381640806,1756300269532,-549.84,0.00023287,2]
[381640808,1756300269544,-480.0,0.00023287,2]
[381640810,1756300269556,-480.0,0.00023287,2]
[381640813,1756300269568,-480.0,0.00023287,2]
[381640815,1756300269580,-480.0,0.00023287,2]
[381640817,1756300269592,-480.0,0.00023287,2]
[381640819,1756300269604,-480.0,0.00023287,2]
[381640822,1756300269616,-480.0,0.00023287,2]
[381640824,1756300269629,-472.96494847,0.00023287,2]
[381640826,1756300269641,-1190.92,0.00023287,2]
[381640829,1756300269653,-480.0,0.00023287,2]
[381640831,1756300269665,-480.0,0.00023287,2]
[381640834,1756300269678,-653.11,0.00023287,2]
[381640836,1756300269690,-480.0,0.00023287,2]
[381640838,1756300269702,-701.02,0.00023287,2]
[381640840,1756300269713,-480.0,0.00023287,2]
[381640843,1756300269726,-480.0,0.00023287,2]
[381640845,1756300269738,-480.0,0.00023287,2]
[381640848,1756300269750,-402.25768488,0.00023287,2]
[381640850,1756300269763,-480.0,0.00023287,2]
[381640852,1756300269774,-561.6,0.00023287,2]
[381640854,1756300269786,-480.0,0.00023287,2]
[381640857,1756300269798,-536.08,0.00023287,2]
[381640859,1756300269811,-785.56,0.00023287,2]
[381640861,1756300269823,-707.7,0.00023287,2]
[381640864,1756300269835,-294.4361867,0.00023287,2]
[381640866,1756300269847,-480.0,0.00023287,2]
[381640868,1756300269859,-480.0,0.00023287,2]
[381640870,1756300269871,-480.0,0.00023287,2]
[381640873,1756300269884,-848.07,0.00023287,2]
[381640875,1756300269896,-480.0,0.00023287,2]
[381640877,1756300269907,-480.0,0.00023287,2]
[381640880,1756300269921,-480.0,0.00023287,2]
[381640882,1756300269933,-480.0,0.00023287,2]
[381640884,1756300269945,-480.0,0.00023287,2]
[381640886,1756300269957,-480.0,0.00023287,2]
[381640889,1756300269969,-480.0,0.00023287,2]
[381640891,1756300269981,-480.0,0.00023287,2]
[381640893,1756300269993,-480.0,0.00023287,2]
[381640896,1756300270006,-480.0,0.00023287,2]
[381640898,1756300270018,-1132.16,0.00023287,2]
[381640900,1756300270030,-480.0,0.00023287,2]
[381640903,1756300270043,-480.0,0.00023287,2]
[381640905,1756300270053,-480.0,0.00023287,2]
[381640907,1756300270063,-668.2,0.00023287,2]
[381640909,1756300270073,-480.0,0.00023287,2]
[381640911,1756300270082,-480.0,0.00023287,2]
[381640913,1756300270091,-480.0,0.00023287,2]
[381640915,1756300270100,-592.01,0.00023287,2]
[381640917,1756300270110,-480.0,0.00023287,2]
[381640919,1756300270120,-480.0,0.00023287,2]
[381640920,1756300270129,-480.0,0.00023287,2]
[381640921,1756300270139,-480.0,0.00023287,2]
[381640937,1756300270412,-480.0,0.00023287,2]
[381640940,1756300270435,-480.0,0.00023287,2]
[381640943,1756300270451,-480.0,0.00023287,2]
[381640946,1756300270472,-480.0,0.00023287,2]
[381640948,1756300270483,-1077.95,0.00023287,2]
[381640950,1756300270500,-480.0,0.00023287,2]
[381640952,1756300270510,-480.0,0.00023287,2]
[381640954,1756300270523,-480.0,0.00023287,2]
[381640956,1756300270532,-480.0,0.00023287,2]
[381640958,1756300270542,-480.0,0.00023287,2]
[381640960,1756300270551,-480.0,0.00023287,2]
[381640962,1756300270560,-480.0,0.00023287,2]
[381640964,1756300270569,-528.98,0.00023287,2]
[381640966,1756300270579,-480.0,0.00023287,2]
[381640968,1756300270588,-534.74,0.00023287,2]
[381640970,1756300270598,-557.3,0.00023287,2]
[381640972,1756300270607,-482.45,0.00023287,2]
[381640974,1756300270616,-480.0,0.00023287,2]
[381640976,1756300270625,-480.0,0.00023287,2]
[381640978,1756300270635,-622.33,0.00023287,2]
[381640980,1756300270644,-480.0,0.00023287,2]
[381640982,1756300270653,-480.0,0.00023287,2]
[381640984,1756300270662,-522.2,0.00023287,2]
[381640986,1756300270671,-151.0,0.00023287,7]
[381640988,1756300270681,-480.0,0.00023287,2]
[381640990,1756300270690,-480.0,0.00023287,2]
[381640992,1756300270699,-480.0,0.00023287,2]
[381640994,1756300270708,-682.64,0.00023287,2]
[381640996,1756300270717,-480.0,0.00023287,2]
[381640998,1756300270727,-480.0,0.00023287,2]
[381641000,1756300270736,-480.0,0.00023287,2]
[381641002,1756300270745,-480.0,0.00023287,2]
[381641004,1756300270754,-480.0,0.00023287,2]
[381641006,1756300270763,-480.0,0.00023287,2]
[381641008,1756300270772,-480.0,0.00023287,2]
[381641010,1756300270782,-480.0,0.00023287,2]
[381641012,1756300270791,-153.58715408,0.00023287,2]
[381641014,1756300270801,-496.41,0.00023287,2]
[381641016,1756300270810,-295.60708861,0.00023287,2]
[381641018,1756300270819,-480.0,0.00023287,2]
[381641020,1756300270828,-480.0,0.00023287,2]
[381641022,1756300270838,-480.0,0.00023287,2]
[381641024,1756300270847,-961.54,0.00023287,2]
[381641026,1756300270856,-480.0,0.00023287,2]
[381641028,1756300270866,-541.92,0.00023287,2]
[381641030,1756300270875,-480.0,0.00023287,2]
[381641032,1756300270884,-489.46,0.00023287,2]
[381641034,1756300270893,-480.0,0.00023287,2]
[381641036,1756300270902,-480.0,0.00023287,2]
[381641038,1756300270911,-483.97,0.00023287,2]
[381641040,1756300270920,-572.57,0.00023287,2]
[381641041,1756300270929,-524.23,0.00023287,2]
[381641043,1756300270939,-480.0,0.00023287,2]
[381641045,1756300270948,-480.0,0.00023287,2]
[381641047,1756300270958,-787.06,0.00023287,2]
[381641049,1756300270968,-480.0,0.00023287,2]
[381641051,1756300270977,-518.41,0.00023287,2]
[381641053,1756300270986,-480.0,0.00023287,2]
[381641056,1756300270995,-480.0,0.00023287,2]
[381641057,1756300271005,-480.0,0.00023287,2]
[381641060,1756300271014,-480.0,0.00023287,2]
[381641061,1756300271023,-480.0,0.00023287,2]
[381641064,1756300271033,-739.43,0.00023287,2]
[381641066,1756300271043,-480.0,0.00023287,2]
[381641068,1756300271052,-480.0,0.00023287,2]
[381641070,1756300271062,-1255.57,0.00023287,2]
[381641072,1756300271071,-493.24,0.00023287,2]
[381641074,1756300271080,-598.58,0.00023287,2]
[381641075,1756300271089,-480.0,0.00023287,2]
[381641077,1756300271098,-480.0,0.00023287,2]
[381641079,1756300271108,-641.42,0.00023287,2]
[381641081,1756300271121,-480.0,0.00023287,2]
[381641083,1756300271132,-728.84,0.00023287,2]
[381641085,1756300271142,-480.0,0.00023287,2]
[381641087,1756300271151,-480.0,0.00023287,2]
[381641089,1756300271161,-696.31,0.00023287,2]
[381641091,1756300271170,-480.0,0.00023287,2]
[381641093,1756300271179,-480.0,0.00023287,2]
[381641095,1756300271188,-600.0,0.00023287,2]
[381641097,1756300271198,-550.69,0.00023287,2]
[381641100,1756300271207,-480.0,0.00023287,2]
[381641101,1756300271216,-555.64,0.00023287,2]
[381641103,1756300271225,-480.0,0.00023287,2]
[381641106,1756300271235,-480.0,0.00023287,2]
[381641107,1756300271244,-480.0,0.00023287,2]
[381641110,1756300271253,-480.0,0.00023287,2]
[381641111,1756300271263,-480.0,0.00023287,2]
[381641113,1756300271272,-516.93,0.00023287,2]
[381641115,1756300271281,-480.0,0.00023287,2]
[381641117,1756300271292,-480.0,0.00023287,2]
[381641119,1756300271301,-480.0,0.00023287,2]
[381641121,1756300271311,-480.0,0.00023287,2]
[381641123,1756300271320,-480.0,0.00023287,2]
[381641125,1756300271329,-500.0,0.00023287,2]
[381641127,1756300271342,-480.0,0.00023287,2]
[381641129,1756300271354,-480.0,0.00023287,2]
[381641131,1756300271363,-4811.31,0.00023287,2]
[381641133,1756300271372,-480.0,0.00023287,2]
[381641135,1756300271381,-480.0,0.00023287,2]
[381641138,1756300271391,-480.0,0.00023287,2]
[381641140,1756300271400,-480.0,0.00023287,2]
[381641142,1756300271409,-480.0,0.00023287,2]
[381641143,1756300271421,-892.28,0.00023287,2]
[381641146,1756300271431,-480.0,0.00023287,2]
[381641147,1756300271440,-648.11,0.00023287,2]
[381641149,1756300271449,-480.0,0.00023287,2]
[381641152,1756300271459,-628.16,0.00023287,2]
[381641154,1756300271468,-480.0,0.00023287,2]
[381641156,1756300271478,-480.0,0.00023287,2]
[381641157,1756300271487,-496.15,0.00023287,2]
[381641159,1756300271498,-520.69,0.00023287,2]
[381641161,1756300271507,-276.60101797,0.00023287,2]
[381641163,1756300271516,-700.56,0.00023287,2]
[381641166,1756300271526,-480.0,0.00023287,2]
[381641168,1756300271535,-531.78,0.00023287,2]
[381641170,1756300271553,-480.0,0.00023287,2]
[381641173,1756300271567,-480.0,0.00023287,2]
[381641175,1756300271578,-480.0,0.00023287,2]
[381641177,1756300271587,-480.0,0.00023287,2]
[381641179,1756300271597,-2061.31,0.00023287,2]
[381641181,1756300271607,-548.5,0.00023287,2]
[381641183,1756300271617,-298.7401653,0.00023287,2]
[381641185,1756300271627,-389.38867201,0.00023287,2]
[381641187,1756300271638,-598.63,0.00023287,2]
[381641189,1756300271648,-707.22,0.00023287,2]
[381641191,1756300271658,-592.64,0.00023287,2]
[381641193,1756300271668,-480.0,0.00023287,2]
[381641195,1756300271678,-480.0,0.00023287,2]
[381641197,1756300271689,-480.0,0.00023287,2]
[381641199,1756300271700,-480.0,0.00023287,2]
[381641201,1756300271710,-480.0,0.00023287,2]
[381641203,1756300271720,-480.0,0.00023287,2]
[381641205,1756300271730,-480.0,0.00023287,2]
[381641208,1756300271740,-499.75,0.00023287,2]
[381641210,1756300271751,-500.0,0.00023287,2]
[381641212,1756300271760,-1499.56,0.00023287,2]
[381641214,1756300271771,-480.0,0.00023287,2]
[381641216,1756300271780,-536.82,0.00023287,2]
[381641218,1756300271790,-480.0,0.00023287,2]
[381641220,1756300271800,-480.0,0.00023287,2]
[381641222,1756300271810,-851.04,0.00023287,2]
[381641224,1756300271825,-480.0,0.00023287,2]
[381641226,1756300271841,-480.0,0.00023287,2]
[381641228,1756300271850,-480.0,0.00023287,2]
[381641230,1756300271860,-621.12,0.00023287,2]
[381641232,1756300271870,-480.0,0.00023287,2]
[381641234,1756300271880,-480.0,0.00023287,2]
[381641236,1756300271890,-480.0,0.00023287,2]
[381641238,1756300271900,-480.0,0.00023287,2]
[381641240,1756300271910,-502.73,0.00023287,2]
[381641242,1756300271921,-540.63,0.00023287,2]
[381641244,1756300271931,-1154.23,0.00023287,2]
[381641246,1756300271941,-480.0,0.00023287,2]
[381641248,1756300271951,-480.0,0.00023287,2]
[381641250,1756300271961,-480.0,0.00023287,2]
[381641252,1756300271971,-480.0,0.00023287,2]
[381641254,1756300271981,-2209.59,0.00023287,2]
[381641256,1756300271991,-991.65,0.00023287,2]
[381641258,1756300272000,-480.0,0.00023287,2]
[381641260,1756300272010,-535.15968138,0.00023287,2]